bitfinex-derivatives/quotes_BNBF0:USTF0_20250908
["timestamp","ask_amount","ask_price","bid_price","bid_amount"]
[1757322528737,0.19885373,876.38,875.28,2.5461728]
[1757322529139,0.19885373,876.38,875.36,2.5461728]
[1757322529641,0.19885373,876.38,875.39,2.5461728]
[1757322530742,0.19885373,876.38,875.29,2.5461728]
[1757322531443,0.19885373,876.38,874.66,2.5461728]
[1757322531641,0.19885373,876.38,874.67,0.77858134]
[1757322531843,0.19885373,876.38,874.68,0.77858134]
[1757322532044,0.19885373,876.38,874.69,0.77858134]
[1757322532244,0.19885373,876.38,874.7,0.77858134]
[1757322532444,0.19885373,876.38,874.71,0.77858134]
[1757322532738,0.19885373,876.38,874.72,0.77858134]
[1757322532943,0.19885373,876.38,874.73,0.77858134]
[1757322533144,0.19885373,876.38,874.74,0.77858134]
[1757322533438,0.19885373,876.38,874.75,0.77858134]
[1757322533640,0.19885373,876.38,875.63,1.5333064]
[1757322534042,0.19885373,876.38,875.76,1.5333064]
[1757322536742,0.19885373,876.38,875.8,1.5333064]
[1757322536939,0.19885373,876.38,875.87,1.5333064]
[1757322537145,0.19885373,876.38,875.95,1.5333064]
[1757322537341,0.19885373,876.38,875.96,1.5333064]
[1757322537545,0.19885373,876.38,876.0,1.5333064]
[1757322537746,0.19885373,876.38,876.01,1.5333064]
[1757322539147,0.19885373,876.38,875.98,1.5333064]
[1757322539345,0.19885373,876.38,876.0,1.5333064]
[1757322541448,0.19885373,876.38,876.05,1.5333064]
[1757322543653,0.19885373,876.38,876.05,2.5555515]
[1757322543846,0.19885373,876.38,876.07,2.5555515]
[1757322544049,0.19885373,876.38,876.03,1.0222451]
[1757322544249,0.19885373,876.38,876.12,1.0222451]
[1757322544449,0.19885373,876.38,876.1,1.0222451]
[1757322544651,0.19885373,876.38,876.09,1.0222451]
[1757322545554,0.19885373,876.38,876.08,1.0222451]
[1757322548257,0.19885373,876.38,875.91,1.0222451]
[1757322548458,0.19885373,876.38,875.9,1.0222451]
[1757322548652,0.19885373,876.38,875.91,1.0222451]
[1757322549456,0.19885373,876.38,875.95,1.0222451]
[1757322550057,0.19885373,876.38,876.11,1.0222451]
[1757322551560,0.19885373,876.38,876.12,1.0222451]
[1757322552653,0.19885373,876.38,876.2,1.0222451]
[1757322553056,0.19885373,876.38,876.14,1.0222451]
[1757322553254,0.19885373,876.38,876.19,1.0222451]
[1757322553457,0.19885373,876.38,876.2,1.0222451]
[1757322554062,0.19885373,876.38,873.69,5.0923457]
[1757322554063,0.19885373,876.38,876.31,1.0222451]
[1757322554556,0.19885373,876.38,876.3,1.0222451]
[1757322557061,0.19885373,876.38,876.19,1.5333064]
[1757322557464,0.19885373,876.38,876.2,1.5333064]
[1757322557760,0.19885373,876.38,876.19,1.5333064]
[1757322558160,0.19885373,876.38,876.16,1.5333064]
[1757322559466,0.19885373,876.38,876.18,1.5333064]
[1757322561366,0.19885373,876.38,876.19,1.5333064]
[1757322563366,0.19885373,876.38,876.2,1.5333064]
[1757322564067,0.19885373,876.38,876.27,1.5333064]
[1757322564268,0.19885373,876.38,876.28,1.5333064]
[1757322564468,0.19885373,876.38,876.29,1.5333064]
[1757322565570,0.19885373,876.38,876.28,1.5333064]
[1757322566369,0.19885373,876.38,876.34,1.5333064]
[1757322568067,0.19885373,876.38,875.65,2.5461728]
[1757322569768,0.19885373,876.38,875.74,2.5461728]
[1757322570769,0.19885373,876.38,875.75,2.5461728]
[1757322571870,0.19885373,876.38,876.33,1.5355114]
[1757322572268,0.19885373,876.38,876.34,1.5355114]
[1757322573370,0.19885373,876.38,876.36,1.5355114]
[1757322574173,0.19885373,876.38,875.54,2.5461728]
[1757322574375,0.19885373,876.38,875.57,2.5461728]
[1757322574874,0.19885373,876.38,875.55,2.5461728]
[1757322575376,0.19885373,876.38,875.57,2.5461728]
[1757322576476,0.19885373,876.38,875.58,2.5461728]
[1757322576976,0.19885373,876.38,875.6,2.5461728]
[1757322577474,0.19885373,876.38,875.61,2.5461728]
[1757322578477,0.19885373,876.38,875.62,2.5461728]
[1757322578979,0.19885373,876.38,875.61,2.5461728]
[1757322579575,0.19885373,876.38,875.63,2.5461728]
[1757322580074,0.19885373,876.38,875.64,2.5461728]
[1757322581479,0.5,876.8,876.37,3.33186428]
[1757322582276,0.5,876.74,876.37,3.33186428]
[1757322584281,0.5,876.74,876.37,1.79408078]
[1757322584681,0.19879353,876.65,876.37,1.79408078]
[1757322586980,0.19879353,876.65,876.37,0.76889178]
[1757322589679,0.19879353,876.65,876.36,0.76889178]
[1757322590683,0.19879353,876.65,876.38,0.76889178]
[1757322590882,0.19879353,876.65,876.45,0.76889178]
[1757322597294,0.19879353,876.65,876.45,1.79408078]
[1757322600492,0.19879353,876.65,876.45,3.33186428]
[1757322604400,0.19879353,876.65,876.45,1.90126572]
[1757322606497,0.19879353,876.65,876.45,0.36348222]
[1757322609606,0.19879353,876.65,876.46,1.5377835]
[1757322611108,0.19879353,876.65,876.49,1.5377835]
[1757322611305,0.19879353,876.65,876.52,1.5377835]
[1757322611805,0.19879353,876.65,876.54,1.5377835]
[1757322612309,0.19879353,876.65,876.53,1.5377835]
[1757322612809,0.19879353,876.65,876.56,1.5377835]
[1757322613009,0.19879353,876.65,876.57,1.5377835]
[1757322613410,0.19879353,876.65,876.45,1.5377835]
[1757322613906,0.19879353,876.65,876.44,1.5377835]
[1757322614207,0.19879353,876.65,876.46,1.5377835]
[1757322614508,0.19879353,876.65,876.45,1.5377835]
[1757322617213,0.19879353,876.65,876.44,1.5377835]
[1757322618212,0.19879353,876.65,876.43,1.5377835]
[1757322622312,0.19879353,876.65,876.42,1.5377835]
[1757322623320,0.19879353,876.65,875.38,2.5461728]
[1757322623519,0.19879353,876.65,876.54,1.5406934]
[1757322624115,0.19879353,876.65,875.38,2.5461728]
[1757322624319,0.19879353,876.65,875.39,0.76950082]
[1757322624619,0.19879353,876.65,875.4,0.76950082]
[1757322624818,0.19879353,876.65,875.41,0.76950082]
[1757322625015,0.19879353,876.65,875.42,0.76950082]
[1757322625216,0.19879353,876.65,875.43,0.76950082]
[1757322625419,0.19879353,876.65,876.46,1.5406573]
[1757322625817,0.19879353,876.65,876.51,1.5406573]
[1757322626819,0.19879353,876.65,876.53,1.5406573]
[1757322627018,0.19879353,876.65,876.49,1.5406573]
[1757322627719,0.19879353,876.65,876.51,1.5406573]
[1757322630522,0.19879353,876.65,876.5,1.5406573]
[1757322631322,0.19879353,876.65,876.52,1.5406573]
[1757322631723,0.19879353,876.65,876.51,1.5406573]
[1757322632226,0.19879353,876.65,876.5,1.5406573]
[1757322632927,0.19879353,876.65,876.49,1.5406573]
[1757322633127,0.19879353,876.65,876.5,1.5406573]
[1757322634422,0.19879353,876.65,876.58,1.0268352]
[1757322634625,0.19879353,876.65,876.58,2.5674925]
[1757322641133,0.19879353,876.65,876.56,2.5674925]
[1757322642731,0.19879353,876.65,876.55,2.5674925]
[1757322643032,0.19879353,876.65,876.54,2.5674925]
[1757322643435,0.19879353,876.65,876.52,2.5674925]
[1757322643634,0.19879353,876.65,876.51,1.0268352]
[1757322649336,0.19879353,876.65,876.51,2.5674925]
[1757322649837,0.19879353,876.65,876.49,2.5674925]
[1757322653637,0.19879353,876.65,876.49,1.0268352]
[1757322656337,0.19879353,876.65,876.49,2.5674925]
[1757322656841,0.19879353,876.65,875.84,2.5677621]
[1757322657038,0.19879353,876.65,876.0,2.5677621]
[1757322657440,0.19879353,876.65,876.02,2.5677621]
[1757322657944,0.19879353,876.65,875.9,2.5677621]
[1757322658440,0.19879353,876.65,875.86,2.5677621]
[1757322659140,0.19879353,876.65,875.91,2.5677621]
[1757322661152,0.19879353,876.65,875.9,2.5677621]
[1757322661652,0.19879353,876.65,875.89,2.5677621]
[1757322662253,0.19879353,876.65,875.92,2.5677621]
[1757322663759,0.19879353,876.65,875.88,2.5677621]
[1757322664257,0.19879353,876.65,876.54,0.77125041]
[1757322667558,0.19879353,876.65,876.55,0.77125041]
[1757322676859,0.19879353,876.65,876.55,2.31436591]
[1757322683166,0.19879353,876.65,876.55,0.88392792]
[1757322685366,0.19879353,876.65,875.9,2.5677621]
[1757322685570,0.19879353,876.65,875.79,2.5677621]
[1757322686167,0.19879353,876.65,875.8,2.5677621]
[1757322686967,0.19879353,876.65,876.61,1.0287523]
[1757322703186,0.19879353,876.65,876.61,2.5713491]
[1757322717493,0.19879353,876.65,876.6,2.5713491]
[1757322722393,0.19879353,876.65,876.6,1.0287523]
[1757322724594,0.19879353,876.65,876.6,2.5713491]
[1757322726393,0.19879353,876.65,875.57,2.5677621]
[1757322726394,0.19879353,876.65,876.57,2.5713491]
[1757322726690,0.19879353,876.65,876.54,2.5713491]
[1757322731296,0.19879353,876.65,876.53,2.5713491]
[1757322732598,0.19879353,876.65,876.54,2.5713491]
[1757322732801,0.19879353,876.65,876.56,2.5713491]
[1757322734001,0.19879353,876.65,876.6,2.5713491]
[1757322736508,0.19879353,876.65,876.6,1.0287523]
[1757322736704,0.19879353,876.65,876.57,1.0287523]
[1757322743110,0.19879353,876.65,876.57,1.80052232]
[1757322745409,0.19879353,876.65,876.61,1.5425968]
[1757322754512,0.19879353,876.65,876.5,1.5425968]
[1757322755220,0.19879353,876.65,876.51,1.5425968]
[1757322755517,0.19879353,876.65,876.52,1.5425968]
[1757322756619,0.19879353,876.65,876.53,1.5425968]
[1757322757017,0.19879353,876.65,876.57,1.5425968]
[1757322758821,0.19879353,876.65,876.58,1.5425968]
[1757322759622,0.19879353,876.65,876.56,1.5425968]
[1757322760117,0.19879353,876.65,876.61,1.5425968]
[1757322767026,0.19879353,876.65,876.62,1.5425968]
[1757322767225,0.19879353,876.65,876.61,1.5425968]
[1757322767422,0.19879353,876.65,876.63,1.5425968]
[1757322769726,0.19879353,876.65,876.62,1.5425968]
[1757322770120,0.19879353,876.65,876.6,1.5425968]
[1757322772922,0.19879353,876.65,876.61,1.5425968]
[1757322775430,0.19879353,876.65,876.61,2.5716205]
[1757322776225,0.19879353,876.65,876.6,2.5716205]
[1757322776530,0.19879353,876.65,876.61,2.5716205]
[1757322783233,0.19879353,876.65,876.61,1.1412715]
[1757322787436,0.19879353,876.65,874.96,5.0923457]
[1757322787437,0.19879353,876.65,876.07,2.5677621]
[1757322787843,0.429,877.12,876.07,2.5677621]
[1757322788033,0.429,877.12,876.05,2.5677621]
[1757322788537,0.429,877.12,876.03,2.5677621]
[1757322788738,0.19875039,876.86,876.03,2.5677621]
[1757322789037,0.19875039,876.86,876.11,2.5677621]
[1757322790541,0.19875039,876.86,876.12,2.5677621]
[1757322791042,0.19875039,876.86,876.08,2.5677621]
[1757322793243,0.19875039,876.86,876.07,2.5677621]
[1757322793746,0.19875039,876.86,876.1,2.5677621]
[1757322794247,0.19875039,876.86,876.11,2.5677621]
[1757322794747,0.19875039,876.86,876.13,2.5677621]
[1757322795243,0.19875039,876.86,876.12,2.5677621]
[1757322795744,0.19875039,876.86,876.1,2.5677621]
[1757322796348,0.19875039,876.86,876.03,2.5677621]
[1757322796846,0.19875039,876.86,876.05,2.5677621]
[1757322797849,0.19875039,876.86,876.04,2.5677621]
[1757322798849,0.19875039,876.86,876.09,2.5677621]
[1757322800446,0.19875039,876.86,876.1,2.5677621]
[1757322801051,0.19875039,876.86,876.12,2.5677621]
[1757322802750,0.19875039,876.86,876.14,2.5677621]
[1757322803547,0.19875039,876.86,876.13,2.5677621]
[1757322804651,0.19875039,876.86,875.81,2.5677621]
[1757322804851,0.19875039,876.86,875.82,0.79432172]
[1757322805147,0.19875039,876.86,875.83,0.79432172]
[1757322805451,0.19875039,876.86,876.69,0.77199497]
[1757322806955,0.19875039,876.86,876.68,0.77199497]
[1757322807654,0.19875039,876.86,876.68,2.31568187]
[1757322813254,0.19875039,876.86,876.68,3.34449191]
[1757322815159,0.19875039,876.86,876.68,0.48403249]
[1757322820765,0.19875039,876.86,876.05,2.5677621]
[1757322820966,0.5,876.96,876.05,2.5677621]
[1757322821369,0.5,876.96,876.1,2.5677621]
[1757322821770,0.5,876.96,876.11,2.5677621]
[1757322823370,0.455,876.93,876.11,2.5677621]
[1757322823871,0.455,876.93,875.74,3.594867]
[1757322823872,0.455,876.93,876.1,2.5677621]
[1757322824472,0.455,876.93,875.88,2.5677621]
[1757322824968,0.455,876.93,875.92,2.5677621]
[1757322827477,0.455,876.93,875.91,2.5677621]
[1757322828180,0.5,877.07,875.67,2.5677621]
[1757322828579,0.25,876.97,875.67,2.5677621]
[1757322828776,0.5,877.07,875.67,2.5677621]
[1757322829577,0.5,877.07,875.58,2.5677621]
[1757322829780,0.5,877.07,875.59,0.76231847]
[1757322829981,0.5,877.07,875.6,0.76231847]
[1757322830281,0.5,877.07,875.61,0.76231847]
[1757322830481,0.5,877.07,875.58,2.5677621]
[1757322830482,0.5,877.07,875.62,0.76231847]
[1757322830677,0.5,877.07,875.63,0.76231847]
[1757322830977,0.5,877.07,875.64,0.76231847]
[1757322831181,0.5,877.07,875.65,0.76231847]
[1757322831378,0.5,877.07,875.66,0.76231847]
[1757322831579,0.5,877.07,875.67,0.76231847]
[1757322831883,0.5,877.07,875.6,2.5677621]
[1757322832084,0.5,877.07,875.61,0.76233566]
[1757322832284,0.5,877.07,875.62,0.76233566]
[1757322832485,0.5,877.07,875.63,0.76233566]
[1757322832685,0.5,877.07,875.64,0.76233566]
[1757322832882,0.5,877.07,875.65,0.76233566]
[1757322833185,0.5,877.07,875.6,2.5677621]
[1757322833786,0.5,877.07,875.61,2.5677621]
[1757322834287,0.5,877.07,875.66,2.5677621]
[1757322834884,0.5,877.07,875.77,2.5677621]
[1757322835083,0.5,877.07,876.66,1.543056]
[1757322837692,0.456,877.07,876.66,1.543056]
[1757322837992,0.429,877.07,876.66,1.543056]
[1757322838593,0.456,877.07,876.66,1.543056]
[1757322838793,0.429,877.07,876.66,1.543056]
[1757322840395,0.429,877.07,876.14,2.5677621]
[1757322840594,0.429,877.07,875.09,5.0923457]
[1757322840595,0.429,877.07,876.22,2.5677621]
[1757322840997,0.429,877.07,876.1,2.5677621]
[1757322842095,0.429,877.07,876.12,2.5677621]
[1757322842096,0.456,877.07,876.12,2.5677621]
[1757322842392,0.429,877.07,876.12,2.5677621]
[1757322843095,0.456,877.07,876.12,2.5677621]
[1757322844097,0.429,877.07,876.12,2.5677621]
[1757322844296,2.5637886,879.22,875.72,3.594867]
[1757322844297,0.5,877.19,876.05,2.5677621]
[1757322844796,0.5,877.19,876.02,2.5677621]
[1757322845097,0.5,877.19,876.69,1.0287914]
[1757322845495,0.433,877.19,876.69,1.0287914]
[1757322845700,0.463,877.11,876.69,1.0287914]
[1757322846498,0.5,877.08,876.69,1.0287914]
[1757322852204,0.49,877.08,876.69,1.0287914]
[1757322860407,0.49,877.08,876.69,2.5723537]
[1757322860708,0.463,877.08,876.7,2.5723537]
[1757322861011,1.0255154,878.02,876.7,2.5723537]
[1757322861012,0.5,877.19,876.7,2.5723537]
[1757322861909,0.296,877.16,876.7,2.5723537]
[1757322862508,0.5,877.19,876.7,2.5723537]
[1757322862705,0.296,877.16,876.7,2.5723537]
[1757322864306,0.5,877.19,876.73,2.5723537]
[1757322864706,0.296,877.16,876.73,2.5723537]
[1757322866509,0.5,877.23,876.73,2.5723537]
[1757322866710,0.296,877.16,876.73,2.5723537]
[1757322867211,0.5,877.23,876.73,2.5723537]
[1757322867415,0.323,877.18,876.73,1.142202]
[1757322868016,0.5,877.23,876.73,1.142202]
[1757322868217,0.296,877.16,876.73,1.142202]
[1757322868821,0.5,877.23,876.73,1.142202]
[1757322869023,0.296,877.16,876.73,1.142202]
[1757322870120,0.296,877.16,876.75,1.0287914]
[1757322870621,0.5,877.23,876.75,1.0287914]
[1757322870825,0.296,877.16,876.77,1.0287914]
[1757322871927,0.296,877.16,876.81,1.0287914]
[1757322873224,0.5,877.27,876.81,1.0287914]
[1757322873422,0.323,877.18,876.81,0.1529411]
[1757322876129,0.296,877.17,876.81,0.1529411]
[1757322877026,0.296,877.16,876.81,0.1529411]
[1757322877224,0.5,877.27,876.81,0.1529411]
[1757322877426,0.5,877.27,876.14,2.5677621]
[1757322877627,0.296,877.16,876.16,2.5677621]
[1757322878124,0.296,877.16,876.15,2.5677621]
[1757322878527,0.296,877.16,876.17,2.5677621]
[1757322879129,0.296,877.16,876.22,2.5677621]
[1757322879625,0.296,877.16,876.12,2.5677621]
[1757322880331,0.5,877.27,876.12,2.5677621]
[1757322880530,0.296,877.16,876.12,2.5677621]
[1757322881332,0.5,877.27,875.86,2.5677621]
[1757322881533,0.296,877.16,875.86,2.5677621]
[1757322882729,0.296,877.16,875.87,2.5677621]
[1757322882929,0.5,877.27,875.87,2.5677621]
[1757322883129,0.296,877.16,875.88,0.79965296]
[1757322883330,0.5,877.27,875.89,0.79965296]
[1757322883629,0.296,877.16,875.87,2.5677621]
[1757322883832,0.296,877.16,875.88,0.79962433]
[1757322884035,0.296,877.16,875.89,0.79962433]
[1757322884231,0.296,877.16,875.87,2.5677621]
[1757322884529,0.5,877.27,875.88,0.79959944]
[1757322884729,0.296,877.16,876.01,2.5677621]
[1757322885336,0.497,877.14,875.77,2.5677621]
[1757322885531,0.47,877.14,875.78,0.79957812]
[1757322885832,0.5,877.14,875.79,0.79957812]
[1757322886034,0.5,877.14,875.8,0.79957812]
[1757322886329,0.296,877.16,875.81,0.79957812]
[1757322886531,0.296,877.16,875.82,0.79957812]
[1757322886730,0.296,877.16,875.63,2.5677621]
[1757322886731,0.296,877.16,875.83,0.79957812]
[1757322886931,0.296,877.16,875.84,0.79957812]
[1757322887234,0.296,877.16,875.85,0.79957812]
[1757322887437,0.266,877.13,876.71,1.5413534]
[1757322887639,0.353,877.16,876.71,1.5413534]
[1757322887934,0.5,877.2,876.71,1.5413534]
[1757322888138,0.353,877.16,876.71,1.5413534]
[1757322888339,0.296,877.16,876.71,1.5413534]
[1757322889339,0.5,877.2,876.71,1.5413534]
[1757322889535,0.296,877.16,876.71,1.5413534]
[1757322890039,0.323,877.16,876.71,1.5413534]
[1757322890239,0.5,877.2,876.7,1.5413534]
[1757322890437,0.296,877.16,876.7,1.5413534]
[1757322890636,0.296,877.16,876.77,1.5413534]
[1757322891336,0.296,877.16,876.75,1.5413534]
[1757322891540,0.323,877.16,876.75,1.5413534]
[1757322891738,0.296,877.16,876.75,1.5413534]
[1757322892041,0.5,877.21,876.76,1.5413534]
[1757322892238,1.0255154,878.46,876.76,1.5413534]
[1757322892239,0.296,877.16,876.76,1.5413534]
[1757322892438,0.38,877.2,876.81,1.5413534]
[1757322892938,0.252,877.18,876.81,1.5413534]
[1757322893138,0.38,877.2,876.81,1.5413534]
[1757322893539,0.323,877.2,876.81,1.5413534]
[1757322894437,0.323,877.2,876.72,1.5413534]
[1757322894740,0.5,877.21,876.72,1.5413534]
[1757322894941,0.5,877.21,876.53,1.5413534]
[1757322895441,0.414,877.38,876.55,1.5413534]
[1757322895640,0.296,877.25,876.55,1.5413534]
[1757322897140,0.5,877.38,876.68,1.5413534]
[1757322897338,0.5,877.38,876.95,0.7703364]
[1757322897740,0.296,877.37,876.95,0.7703364]
[1757322899042,0.5,877.48,876.95,0.7703364]
[1757322899342,0.296,877.38,876.95,0.7703364]
[1757322900641,0.5,877.38,876.95,0.7703364]
[1757322900941,0.498,877.33,876.94,0.7703364]
[1757322901142,0.471,877.33,876.94,0.7703364]
[1757322902539,0.296,877.36,876.94,0.7703364]
[1757322905144,0.5,877.48,876.94,0.7703364]
[1757322905344,0.296,877.36,876.94,0.7703364]
[1757322906344,0.296,877.36,876.9,1.5413534]
[1757322906544,0.296,877.36,876.94,2.3112086]
[1757322906747,0.441,877.28,876.94,2.3112086]
[1757322907045,0.468,877.28,876.94,2.3112086]
[1757322907246,0.323,877.31,876.94,2.3112086]
[1757322907647,0.323,877.31,876.94,3.3376388]
[1757322908543,0.427,877.34,876.94,3.3376388]
[1757322909343,1.0255154,878.4,876.94,3.3376388]
[1757322909344,0.427,877.38,876.94,3.3376388]
[1757322912346,0.427,877.38,876.94,1.7962854]
[1757322912547,0.427,877.38,876.94,3.3376388]
[1757322913446,0.5,877.4,876.94,3.3376388]
[1757322913751,0.427,877.36,876.94,1.7962854]
[1757322913948,0.5,877.4,876.94,1.7962854]
[1757322914146,1.0255154,878.42,876.94,1.7962854]
[1757322914147,0.427,877.36,876.94,1.7962854]
[1757322914347,0.5,877.4,876.94,1.7962854]
[1757322914547,0.427,877.36,876.94,1.7962854]
[1757322914752,0.427,877.36,876.94,3.3376388]
[1757322915050,0.427,877.36,876.94,1.7962854]
[1757322920053,0.427,877.36,876.95,1.7962854]
[1757322920254,0.481,877.33,876.95,1.7962854]
[1757322920452,0.5,877.33,876.95,1.7962854]
[1757322920652,0.5,877.33,876.95,3.3376388]
[1757322920853,0.5,877.33,876.95,1.9078348]
[1757322921050,0.5,877.33,876.95,1.5413534]
[1757322921556,0.5,877.57,877.0,1.5413534]
[1757322921756,0.5,877.57,876.99,1.5413534]
[1757322921954,0.4,877.48,877.01,1.5413534]
[1757322922156,0.5,877.56,877.01,1.5413534]
[1757322922356,0.5,877.56,877.05,1.5413534]
[1757322922556,0.4,877.47,877.05,1.5413534]
[1757322922852,0.4,877.47,876.87,1.5413534]
[1757322923056,0.4,877.48,876.86,1.5413534]
[1757322923254,0.4,877.48,876.85,1.5413534]
[1757322923459,0.5,877.57,877.13,1.5413534]
[1757322923752,0.343,877.67,877.17,1.5413534]
[1757322923956,0.343,877.67,877.22,1.5413534]
[1757322924154,0.343,877.67,877.28,1.5413534]
[1757322924353,0.343,877.67,877.21,1.5413534]
[1757322924558,0.343,877.67,877.18,1.5413534]
[1757322924754,0.484,877.67,877.18,1.5413534]
[1757322924956,0.457,877.67,877.16,1.5413534]
[1757322925259,0.457,877.69,877.15,1.5413534]
[1757322925657,0.5,877.82,877.15,1.5413534]
[1757322925856,0.457,877.69,877.15,1.5413534]
[1757322926160,0.457,877.69,877.18,1.5413534]
[1757322926460,0.457,877.69,877.27,1.5413534]
[1757322927158,0.457,877.69,877.28,1.5413534]
[1757322927361,0.457,877.69,877.27,1.5413534]
[1757322928363,0.457,877.69,877.26,1.5413534]
[1757322928658,0.457,877.69,877.25,1.5413534]
[1757322929063,0.456,877.69,877.25,1.5413534]
[1757322929260,0.353,877.64,877.25,1.5413534]
[1757322929462,0.301,877.64,877.15,1.5413534]
[1757322929660,0.5,877.69,877.14,1.5413534]
[1757322930364,0.5,877.69,877.13,1.5413534]
[1757322930562,0.5,877.69,877.14,1.5413534]
[1757322930761,0.471,877.62,877.14,1.5413534]
[1757322931265,0.471,877.62,877.15,1.5413534]
[1757322931460,0.471,877.62,876.28,2.5677621]
[1757322931461,0.471,877.62,877.14,1.5413534]
[1757322932365,0.471,877.62,877.13,1.5413534]
[1757322932560,0.259,877.74,877.13,1.5413534]
[1757322932766,0.399,877.8,877.1,1.5413534]
[1757322932965,0.399,877.8,877.11,1.5413534]
[1757322933166,0.399,877.8,877.1,1.5413534]
[1757322933462,0.456,877.8,876.81,1.5413534]
[1757322934466,0.5,877.96,876.96,1.5413534]
[1757322934660,0.456,877.85,876.96,1.5413534]
[1757322934862,0.456,877.85,877.02,1.5413534]
[1757322935467,0.456,877.85,877.01,1.5413534]
[1757322935664,0.456,877.85,877.09,1.5413534]
[1757322935870,0.456,877.85,877.1,1.5413534]
[1757322936269,0.271,878.41,877.08,1.5413534]
[1757322936472,0.471,878.19,877.39,1.5413534]
[1757322936670,0.497,878.19,877.4,1.5413534]
[1757322936870,0.471,878.19,877.4,1.5413534]
[1757322937066,0.471,878.19,877.38,1.5413534]
[1757322937578,0.471,878.19,877.41,1.5413534]
[1757322937779,0.5,877.76,876.83,1.5413534]
[1757322938278,0.5,877.76,876.81,1.5413534]
[1757322938677,0.5,877.76,876.8,1.5413534]
[1757322939381,0.471,877.69,876.8,1.5413534]
[1757322939576,0.471,877.69,876.83,1.5413534]
[1757322939777,0.498,877.69,876.83,1.5413534]
[1757322940076,0.498,877.69,876.84,1.5413534]
[1757322940783,0.498,877.69,876.89,1.5413534]
[1757322941276,0.471,877.69,876.87,1.5413534]
[1757322941483,0.498,877.69,876.8,1.5413534]
[1757322941675,0.471,877.69,876.8,1.5413534]
[1757322942680,0.471,877.69,876.82,1.5413534]
[1757322942880,0.498,877.69,876.82,1.5413534]
[1757322943078,0.471,877.69,876.81,1.5413534]
[1757322943281,0.426,877.85,876.81,1.5413534]
[1757322943581,0.4,877.85,876.82,1.5413534]
[1757322943982,0.47,877.48,876.43,1.5413534]
[1757322944179,0.286,877.73,876.43,1.5413534]
[1757322944886,0.286,877.73,876.33,1.5413534]
[1757322945585,0.498,877.48,876.33,1.5413534]
[1757322946486,0.498,877.48,876.34,1.5413534]
[1757322946787,0.259,877.72,876.4,1.5413534]
[1757322947086,0.259,877.72,876.39,1.5413534]
[1757322947286,0.5,877.91,876.4,1.5413534]
[1757322947582,0.343,877.74,876.4,1.5413534]
[1757322947780,0.5,877.91,876.4,1.5413534]
[1757322947987,0.343,877.74,876.4,1.5413534]
[1757322948487,0.342,877.74,876.4,1.5413534]
[1757322950585,0.342,877.74,876.42,1.5413534]
[1757322950985,0.342,877.74,876.81,1.0206339]
[1757322951481,0.5,877.91,876.83,1.0206339]
[1757322951685,0.342,877.77,877.03,1.0206339]
[1757322952085,0.342,877.77,877.04,1.0206339]
[1757322952280,0.342,877.77,877.22,1.0206339]
[1757322952584,0.5,877.91,877.22,1.0206339]
[1757322952786,0.5,877.91,877.02,1.0206339]
[1757322952986,0.5,878.38,877.29,1.0206339]
[1757322953190,0.399,878.04,877.29,1.0206339]
[1757322953383,0.5,878.05,877.28,1.0206339]
[1757322953686,0.386,878.01,877.3,1.0206339]
[1757322953886,0.5,878.09,877.45,1.0206339]
[1757322954086,0.259,878.1,877.45,1.0206339]
[1757322954289,0.5,878.14,877.46,1.0206339]
[1757322954487,0.275,878.12,877.37,1.0206339]
[1757322954686,0.5,878.07,877.37,1.0206339]
[1757322954983,0.5,878.07,875.46,3.594867]
[1757322954984,0.438,878.07,877.57,1.0206339]
[1757322955181,0.5,878.04,877.56,1.0206339]
[1757322955687,3.5893041,881.5,877.29,1.5413534]
[1757322955688,0.342,877.92,877.57,1.0206339]
[1757322955888,0.394,877.99,877.57,1.0206339]
[1757322956088,0.368,877.99,877.57,1.0206339]
[1757322956384,0.495,878.0,877.55,1.0206339]
[1757322957185,0.495,878.0,877.57,1.0206339]
[1757322957388,0.5,878.0,877.56,1.0206339]
[1757322957584,0.5,877.93,877.56,1.0206339]
[1757322957887,0.495,877.93,877.56,1.0206339]
[1757322958087,0.469,877.93,877.53,1.0206339]
[1757322958288,0.425,878.02,877.53,1.0206339]